{"text_format":"3","workbook":"xlsx","n_sheets":5,"sheets":["Introduction to FDA Form 3741b","Data","StoreList","LookupList","New_Store_List"],"not_rendered":{"images":2,"macros":1,"defined_names":120},"read":"whole","date_system":"1900"}

{"sheet":"Introduction to FDA Form 3741b","index":0,"n_rows":20,"n_cols":1,"rows_kept":20,"merged":[[0,0,0,7],[2,0,2,7],[4,0,6,7],[8,0,8,7],[10,0,10,2],[12,0,12,7],[14,0,14,7],[16,0,16,7],[18,0,18,7],[19,0,19,7]]}
["DEPARTMENT OF HEALTH AND HUMAN SERVICES\nFood and Drug Administration"]
[]
["Form FDA 3741b \nTobacco Product List Spreadsheet - DRAFT"]
[]
["Form Approved: OMB No. 0910-0650\nExpiration Date: xx/xx/20xx"]
[]
[]
[]
["Paperwork Reduction Act Statement: The Paperwork Reduction Act of 1995 provides that an agency may not conduct or sponsor, and a person is not required to respond to a collection of information unless it displays a valid OMB control number. The valid OMB control number for this information collection is 0910-0650. The time required to complete this information collection is estimated to average 20 minutes per response. Send comments regarding this burden estimate or any other aspects of this collection of information, including suggestions for reducing burden, to PRAStaff@fda.hhs.gov. "]
[]
["Form FDA 3741b (XX/25)"]
[]
["Overview of Tobacco Product List Electronic Submission through FDA’s Tobacco Registration & Product Listing Module Next Generation (TRLM-NG):\n1. FDA created the 3741b Tobacco Product List spreadsheet (or “the spreadsheet”) to help owners, operators, and authorized representatives of tobacco product manufacturing establishments with compiling the information necessary to submit a list of their tobacco products to FDA (see section 905 of the Federal Food, Drug, and Cosmetic Act (FD&C Act)). \n \n2. The spreadsheet has predefined macro programming aligned with data requirements for its successful upload to FDA’s Tobacco Registration & Product Listing Module Next Generation (TRLM-NG). Overwriting the macro headers may result in errors during the spreadsheet upload process. When copying and pasting multiple tobacco products, it is recommended to preselect the values that align to each column header.  \n\n3. After opening the spreadsheet, enable macros when prompted.\n\n4. Select the Data tab and enter a new row per each tobacco product manufactured at each establishment(s) being registered with FDA. All required fields must be provided. If a product attribute or property is not applicable to your product, you must enter \"0\" (if a numeric value field) or \"None\" (if a free text field or selectable drop down field). Tobacco products that differ (i.e., flavor, size, packaging, nicotine levels) must be listed individually on separate rows.  Do not include tobacco products that have already been added or uploaded to your TRLM-NG product list, as they will be flagged as duplicates. Each spreadsheet can list up to 1,000,000 (one million) products. If your product list exceeds 1,000,000 (one million) products, you must complete and upload multiple spreadsheets.\n\n5. Do not rearrange, delete, or add columns to the spreadsheet, as TRLM-NG will not accept your revised spreadsheet.\n\n6. When you have completed the entry of your product information, select the \"Validate Data\" button in the TRLM NG ribbon."]
[]
[]
[]
["7. Export the spreadsheet to CSV using the \"Export to CSV\" button within the spreadsheet."]
[]
[]
["8. Sign in to your TRLM-NG account (https://trlm-ng-industry.fda.gov/login) and follow the on-screen instructions for uploading your product list.\n\n\nOverview for Mailing the 3741b to FDA’s Document Control Center (DCC):\nIf you are unable to submit your product list electronically through FDA’s Tobacco Registration & Product Listing Module Next Generation (TRLM-NG), the 3741b Tobacco Product List Spreadsheet (or “the spreadsheet”) can be filled out manually, printed, and mailed or saved to a USB flash drive or DVD to be mailed to FDA’s Document Control Center (DCC) for FDA to process and upload to TRLM-NG on your behalf.  \n\n\nThe 3741b Tobacco Poduct List Spreadsheet can be mailed to:\nFood and Drug Administration\nCenter for Tobacco Products\nDocument Control Center\nBuilding 71, Room G335\n10903 New Hampshire Avenue\nSilver Spring, MD 20993-0002"]

{"sheet":"Data","index":1,"n_rows":1,"n_cols":63,"rows_kept":1}
["Product Name","Brand Name","Subbrand Name","Product Category","Product Category (if Other)","Product Subcategory","Product Subcategory (if Other)","Intent of Use","Universal Product Code (UPC)","Alternative (Industry) Product Identification #","Alternative (Industry) Product Identification # Type","Alternative (Industry) Product Identification # Type (if Other)","Package Type","Package Type (if Other)","Product Quantity (Numeric Value)","Product Quantity (Units)","Product Quantity (Units, if Other)","Product Quantity Mass (Numeric Value)","Product Quantity Mass (Units)","Characterizing Flavor","Flavor Name (if Flavored)","Flavor Description (if Flavored)","Nicotine Concentration (Numeric Value)","Nicotine Concentration (Units)","Nicotine Concentration (if mg/unit, specify Unit)","Nicotine Source","Tobacco Cut Style","Portion Count (Numeric Value)","Portion Count (Units)","Portion Count (Units, if Other)","Portion Mass (Numeric Value)","Portion Mass (Units)","Length Description","Length Description (if Other)","Length (Numeric Value)","Length (Units)","Width (Numeric Value)","Width (Units)","Diameter (Description)","Diameter (Format)","Diameter (Numeric Value)","Diameter (Units)","Portion Thickness (Numeric Value)","Portion Thickness (Units)","Filter Ventilation (Percentage)","E-Liquid Volume (Numeric Value)","E-Liquid Volume (Units)","PG (Numeric Value)","VG (Numeric Value)","Wattage (Numeric Value)","Wattage (Units)","Battery Capacity (Numeric Value)","Battery Capacity (Units)","Number of Hoses","Height (Numeric Value)","Height (Units)","Source of Energy","Source of Energy (if Other)","Wrapper Material","Wrapper Material (if Other)","Tip Type","Tip Type (if Other)","Additional Properties (if Applicable)"]

{"sheet":"StoreList","index":2,"n_rows":83,"n_cols":26,"rows_kept":83,"hidden":true}
["Product identification number type","Intended Use of Product","Product Category","Accessory Filters","Additive","Chewing Tobacco","Cigar","Cigar Component or Part","Cigarettes","Dissolvables","Dry Snuff","Electronic Nicotine Delivery System (ENDS)","Electronic Nicotine Delivery System or Part","Filters","Moist Snuff","Other (Specify)","Paper","Pipe Tobacco","Pouch for Portioned Tobacco","Roll-Your-Own Filters","Roll-Your-Own Paper","Roll-Your-Own Tobacco","Snus","Tobacco","Waterpipe Tobacco","Waterpipe Tobacco Component or Part"]
["Item or Catalog Number","Consumer Use","Cigarettes","Accessory Filters","N/A","N/A","Cigar Tobacco","Cigar Filter","N/A","N/A","N/A","E-Cigarette","E-Liquid","N/A","N/A","N/A","N/A","Pipe Tobacco","N/A","N/A","N/A","N/A","N/A","N/A","Waterpipe Tobacco","Waterpipe Tobacco Base"]
["SKU","For Further Manufacturing Only","Cigars",{"$nulls":3},"Cigar","Cigar Paper",{"$nulls":3},"E-Cigarette Kit","ENDS Adapter",{"$nulls":4},"Pipe Tobacco Kit",{"$nulls":6},"Other (Specify)","Waterpipe Tobacco Bowl"]
["UPC",null,"Electronic Nicotine Delivery Systems (ENDS)(Vapes)",{"$nulls":3},"Other (Specify)","Cigar Tip",{"$nulls":3},"E-Hookah","ENDS Atomizer",{"$nulls":4},"Other (Specify)",{"$nulls":7},"Waterpipe Tobacco Cinder"]
[null,null,"Heated Tobacco Products (HTP)",{"$nulls":4},"Cigar Tipping Paper",{"$nulls":3},"E-Hookah Kit","ENDS Battery",{"$nulls":12},"Waterpipe Tobacco Diffuser"]
[null,null,"Pipe Tobacco Products",{"$nulls":4},"Cigar Wrapper",{"$nulls":3},"E-Cigar","ENDS Bridge",{"$nulls":12},"Waterpipe Tobacco Flavor Enhancer"]
[null,null,"Roll-Your-Own (RYO) Tobacco Products",{"$nulls":4},"Other (Specify)",{"$nulls":3},"E-Cigar Kit","ENDS Cartomizer",{"$nulls":12},"Waterpipe Tobacco Foil/Screen"]
[null,null,"Roll-Your-Own (RYO) Tobacco Products ",{"$nulls":8},"E-Pipe","ENDS Cartridge",{"$nulls":12},"Waterpipe Tobacco Gasket"]
[null,null,"Smokeless Tobacco Products",{"$nulls":8},"E-Pipe Kit","ENDS Charger",{"$nulls":12},"Waterpipe Tobacco Grommet"]
[null,null,"Waterpipe Tobacco Products",{"$nulls":8},"Advanced Personal Vaporizer","ENDS Clearomizer",{"$nulls":12},"Waterpipe Tobacco Hose"]
[null,null,"Other Products (Specify)",{"$nulls":8},"Advanced Personal Vaporizer Kit","ENDS Coil",{"$nulls":12},"Waterpipe Tobacco Hose Cooling Attachment"]
[null,null,"Oral Nicotine Products",{"$nulls":8},"Vape Pen","ENDS Digital Display/Lights",{"$nulls":12},"Waterpipe Tobacco Mouthpiece"]
[{"$nulls":11},"Vape Pen Kit","ENDS Drip Tip",{"$nulls":12},"Waterpipe Tobacco Valve"]
[{"$nulls":11},"Other (Specify)","ENDS Drip Well",{"$nulls":12},"Waterpipe Tobacco Stem"]
[{"$nulls":12},"ENDS Filler Material",{"$nulls":12},"Waterpipe Tobacco Filtration Base Additives"]
[{"$nulls":12},"ENDS Filter",{"$nulls":12},"Other (Specify)"]
[{"$nulls":12},"ENDS Mouthpiece"]
[{"$nulls":12},"ENDS Software"]
[{"$nulls":12},"ENDS Tank"]
[{"$nulls":12},"Other (Specify)"]
{"$rows_empty":10}
[{"$nulls":3},"OC001","OC002"]
["Consumer Use","Further Manufacturing Use",null,"Open","N/A"]
["CAT001","CAT002",null,"Closed"]
["Accessory Filters","Additive"]
["Chewing Tobacco","Cigar",null,"PKG001","PKG002","PKG003","PKG004","PKG005","PKG006","PKG007","PKG008",null,"PKGNA","PKGFLV"]
["Cigar","Cigar Component or Part",null,"Bag","Glass Bottles","Battery","Bag","Clam Shell","Pouches","Bag","Loose","PKG009","N/A","Menthol"]
["Cigar Component or Part","Electronic Nicotine Delivery System (ENDS)",null,"Bundle","Kits","Glass Bottles","Box","Hard Pack","Can","Box","Metal Can with Metal Lid","Bag",null,"Tobacco"]
["Cigarettes","Electronic Nicotine Delivery System or Part",null,"Glass","Plastic Bottles","Kits","Pouch","Soft Pack","Loose","Paper","Plastic Can with Plastic Lid","Battery"]
["Dissolvables","Filters",null,"Individual Wooden Box","Pods","Plastic Bottles","Other (Specify)","Other (Specify)","Plug","Pouch","Pouches","Box"]
["Dry Snuff","Other (Specify)",null,"Metal","Other (Specify)","Pods",null,null,"Other (Specify)","Sheets","Other (Specify)","Bundle"]
["Electronic Nicotine Delivery System (ENDS)","Paper",null,"Plastic Tube",null,"Other (Specify)",{"$nulls":3},"Tubes",null,"Clam Shell"]
["Electronic Nicotine Delivery System or Part","Pipe Tobacco",null,"Pouch",{"$nulls":5},"Other (Specify)",null,"Glass"]
["Moist Snuff","Pouch for Portioned Tobacco",null,"Other (Specify)",{"$nulls":7},"Hard Pack"]
["Other (Specify)","Tobacco",{"$nulls":9},"Individual Wooden Box"]
["Pipe Tobacco","Waterpipe Tobacco",{"$nulls":9},"Kits"]
["Roll-Your-Own Filters","Waterpipe Tobacco Component or Part",{"$nulls":9},"Loose"]
["Roll-Your-Own Paper",null,null,"OTHERNA",{"$nulls":7},"Metal"]
["Roll-Your-Own Tobacco",null,null,"N/A",{"$nulls":7},"Paper"]
["Snus",{"$nulls":10},"Plastic Bottles"]
["Waterpipe Tobacco",{"$nulls":10},"Plastic Can with Metal Lid"]
["Waterpipe Tobacco Component or Part",{"$nulls":10},"Plastic Can with Plastic Lid"]
[{"$nulls":11},"Plastic Tube"]
[{"$nulls":11},"Pods"]
[{"$nulls":11},"Pouch"]
[{"$nulls":11},"Sheets"]
[{"$nulls":11},"Soft Pack"]
[{"$nulls":11},"Tubes"]
[{"$nulls":3},"PQU001","PQU002","PQU003","PQU004","PQU005","PQU006","PQU007",null,"Other (Specify)"]
[{"$nulls":3},"Each","grams","grams","Box","mL","Ah","Ah"]
[{"$nulls":3},"Pack","oz","mg","Carton",null,"mAh","Box"]
[{"$nulls":3},"Other (Specify)","Other (Specify)","oz","Pack",null,"mL","Carton"]
[{"$nulls":5},"Other (Specify)",null,null,"watt","Each"]
[{"$nulls":8},"Other (Specify)","grams"]
[{"$nulls":9},"mAh"]
[{"$nulls":9},"mg"]
[{"$nulls":9},"mL"]
[{"$nulls":9},"Pack"]
[{"$nulls":9},"oz"]
[{"$nulls":9},"watt"]
[{"$nulls":9},"Other (Specify)"]
[]
[]
[{"$nulls":3},"FL001",null,"FIL001","COM001"]
[{"$nulls":3},"Menthol",null,"Filtered","Combusted"]
[{"$nulls":3},"Tobacco",null,"Non-Filtered","Non-Combusted"]
[]
[]
[]
[{"$nulls":3},"MKTSTATUS","ACTIVELIST"]
[{"$nulls":3},"Discontinued","Active"]
[{"$nulls":3},"Introduced","Inactive"]
[{"$nulls":3},"Reactivated"]
[{"$nulls":3},"Reintroduced"]

{"sheet":"LookupList","index":3,"n_rows":78,"n_cols":22,"rows_kept":78,"hidden":true}
[{"$nulls":3},"Product Category","ProductCategoryLookup",null,"Product Category","OpenClosedLookup",null,"PackageHelper","Product Category","Product Sub Category","PackageTypeLookup","PackageQtyFormat",{"$nulls":6},"IntendedUse","CategoryLookup"]
[{"$nulls":3},"Accessory Filters","PC001",null,"Accessory Filters","OC002",null,{"$f":"K2&L2","v":"CigarCigar Tobacco"},"Cigar","Cigar Tobacco","PKG001","I",{"$nulls":6},"Consumer Use","CAT001"]
[{"$nulls":3},"Additive","PC002",null,"Additive","OC002",null,{"$f":"K3&L3","v":"CigarCigar"},"Cigar","Cigar","PKG001","I",{"$nulls":6},"For Further Manufacturing Only","CAT002"]
[{"$nulls":3},"Chewing Tobacco","PC003",null,"Chewing Tobacco","OC002",null,"CigarOther (Specify)","Cigar","Other (Specify)","PKG001","I"]
[{"$nulls":3},"Cigar","PC004",null,"Cigar","OC002",null,"Cigar Component or PartCigar Filter","Cigar Component or Part","Cigar Filter","PKGNA","N"]
[{"$nulls":3},"Cigar Component or Part","PC005",null,"Cigar Component or Part","OC002",null,"Cigar Component or PartCigar Paper","Cigar Component or Part","Cigar Paper","PKGNA","N"]
[{"$nulls":3},"Cigarettes","PC006",null,"Cigarettes","OC002",null,"Cigar Component or PartCigar Tip","Cigar Component or Part","Cigar Tip","PKGNA","N"]
[{"$nulls":3},"Dissolvables","PC007",null,"Dissolvables","OC002",null,"Cigar Component or PartCigar Tipping Paper","Cigar Component or Part","Cigar Tipping Paper","PKGNA","N"]
[{"$nulls":3},"Dry Snuff","PC008",null,"Dry Snuff","OC002",null,"Cigar Component or PartCigar Wrapper","Cigar Component or Part","Cigar Wrapper","PKGNA","N"]
[{"$nulls":3},"Electronic Nicotine Delivery System (ENDS)","PC009",null,"Electronic Nicotine Delivery System (ENDS)","OC001",null,"Cigar Component or PartOther (Specify)","Cigar Component or Part","Other (Specify)","PKGNA","N"]
[{"$nulls":3},"Electronic Nicotine Delivery System or Part","PC010",null,"Electronic Nicotine Delivery System or Part","OC002",null,"Electronic Nicotine Delivery System (ENDS)E-Cigarette","Electronic Nicotine Delivery System (ENDS)","E-Cigarette","PKGNA","N"]
[{"$nulls":3},"Filters","PC011",null,"Filters","OC002",null,"Electronic Nicotine Delivery System (ENDS)E-Cigarette Kit","Electronic Nicotine Delivery System (ENDS)","E-Cigarette Kit","PKGNA","N"]
[{"$nulls":3},"Moist Snuff","PC012",null,"Moist Snuff","OC002",null,"Electronic Nicotine Delivery System (ENDS)E-Hookah","Electronic Nicotine Delivery System (ENDS)","E-Hookah","PKGNA","N"]
[{"$nulls":3},"Other (Specify)","PC013",null,"Other (Specify)","OC001",null,"Electronic Nicotine Delivery System (ENDS)E-Hookah Kit","Electronic Nicotine Delivery System (ENDS)","E-Hookah Kit","PKGNA","N"]
[{"$nulls":3},"Paper","PC014",null,"Paper","OC002",null,"Electronic Nicotine Delivery System (ENDS)E-Cigar","Electronic Nicotine Delivery System (ENDS)","E-Cigar","PKGNA","N"]
[{"$nulls":3},"Pipe Tobacco","PC015",null,"Pipe Tobacco","OC002",null,"Electronic Nicotine Delivery System (ENDS)E-Cigar Kit","Electronic Nicotine Delivery System (ENDS)","E-Cigar Kit","PKGNA","N"]
[{"$nulls":3},"Pouch for Portioned Tobacco","PC016",null,"Pouch for Portioned Tobacco","OC002",null,"Electronic Nicotine Delivery System (ENDS)E-Pipe","Electronic Nicotine Delivery System (ENDS)","E-Pipe","PKGNA","N"]
[{"$nulls":3},"Roll-Your-Own Filters","PC017",null,"Roll-Your-Own Filters","OC002",null,"Electronic Nicotine Delivery System (ENDS)E-Pipe Kit","Electronic Nicotine Delivery System (ENDS)","E-Pipe Kit","PKGNA","N"]
[{"$nulls":3},"Roll-Your-Own Paper","PC018",null,"Roll-Your-Own Paper","OC002",null,"Electronic Nicotine Delivery System (ENDS)Advanced Personal Vaporizer","Electronic Nicotine Delivery System (ENDS)","Advanced Personal Vaporizer","PKGNA","N"]
[{"$nulls":3},"Roll-Your-Own Tobacco","PC019",null,"Roll-Your-Own Tobacco","OC002",null,"Electronic Nicotine Delivery System (ENDS)Advanced Personal Vaporizer Kit","Electronic Nicotine Delivery System (ENDS)","Advanced Personal Vaporizer Kit","PKGNA","N"]
[{"$nulls":3},"Snus","PC020",null,"Snus","OC002",null,"Electronic Nicotine Delivery System (ENDS)Vape Pen","Electronic Nicotine Delivery System (ENDS)","Vape Pen","PKGNA","N"]
[{"$nulls":3},"Tobacco","PC021",null,"Tobacco","OC002",null,"Electronic Nicotine Delivery System (ENDS)Vape Pen Kit","Electronic Nicotine Delivery System (ENDS)","Vape Pen Kit","PKGNA","N"]
[{"$nulls":3},"Waterpipe Tobacco","PC022",null,"Waterpipe Tobacco","OC002",null,"Electronic Nicotine Delivery System (ENDS)Other (Specify)","Electronic Nicotine Delivery System (ENDS)","Other (Specify)","PKGNA","N"]
[{"$nulls":3},"Waterpipe Tobacco Component or Part","PC023",null,"Waterpipe Tobacco Component or Part","OC002",null,"Electronic Nicotine Delivery System or PartE-Liquid","Electronic Nicotine Delivery System or Part","E-Liquid","PKG002","D"]
[{"$nulls":9},"Electronic Nicotine Delivery System or PartENDS Adapter","Electronic Nicotine Delivery System or Part","ENDS Adapter","PKGNA","N"]
[{"$nulls":9},"Electronic Nicotine Delivery System or PartENDS Atomizer","Electronic Nicotine Delivery System or Part","ENDS Atomizer","PKGNA","N"]
[{"$nulls":9},"Electronic Nicotine Delivery System or PartENDS Battery","Electronic Nicotine Delivery System or Part","ENDS Battery","PKGNA","N"]
[{"$nulls":9},"Electronic Nicotine Delivery System or PartENDS Bridge","Electronic Nicotine Delivery System or Part","ENDS Bridge","PKGNA","N"]
[{"$nulls":9},"Electronic Nicotine Delivery System or PartENDS Cartomizer","Electronic Nicotine Delivery System or Part","ENDS Cartomizer","PKGNA","N"]
[{"$nulls":3},"MarketingStatus","ProductStatus",{"$nulls":4},"Electronic Nicotine Delivery System or PartENDS Cartridge","Electronic Nicotine Delivery System or Part","ENDS Cartridge","PKG003","D"]
[{"$nulls":3},"Introduced","Active",{"$nulls":4},"Electronic Nicotine Delivery System or PartENDS Charger","Electronic Nicotine Delivery System or Part","ENDS Charger","PKGNA","N"]
[{"$nulls":3},"Reactivated","Active",{"$nulls":4},"Electronic Nicotine Delivery System or PartENDS Clearomizer","Electronic Nicotine Delivery System or Part","ENDS Clearomizer","PKGNA","N"]
[{"$nulls":3},"Reintroduced","Active",{"$nulls":4},"Electronic Nicotine Delivery System or PartENDS Coil","Electronic Nicotine Delivery System or Part","ENDS Coil","PKGNA","N"]
[{"$nulls":3},"Discontinued","Inactive",{"$nulls":4},"Electronic Nicotine Delivery System or PartENDS Digital Display/Lights","Electronic Nicotine Delivery System or Part","ENDS Digital Display/Lights","PKGNA","N"]
[{"$nulls":9},"Electronic Nicotine Delivery System or PartENDS Drip Tip","Electronic Nicotine Delivery System or Part","ENDS Drip Tip","PKGNA","N"]
[{"$nulls":9},"Electronic Nicotine Delivery System or PartENDS Drip Well","Electronic Nicotine Delivery System or Part","ENDS Drip Well","PKGNA","N"]
[{"$nulls":9},"Electronic Nicotine Delivery System or PartENDS Filler Material","Electronic Nicotine Delivery System or Part","ENDS Filler Material","PKGNA","N"]
[{"$nulls":9},"Electronic Nicotine Delivery System or PartENDS Filter","Electronic Nicotine Delivery System or Part","ENDS Filter","PKGNA","N"]
[{"$nulls":9},"Electronic Nicotine Delivery System or PartENDS Mouthpiece","Electronic Nicotine Delivery System or Part","ENDS Mouthpiece","PKGNA","N"]
[{"$nulls":9},"Electronic Nicotine Delivery System or PartENDS Software","Electronic Nicotine Delivery System or Part","ENDS Software","PKGNA","N"]
[{"$nulls":9},"Electronic Nicotine Delivery System or PartENDS Tank","Electronic Nicotine Delivery System or Part","ENDS Tank","PKGNA","N"]
[{"$nulls":9},"Electronic Nicotine Delivery System or PartOther (Specify)","Electronic Nicotine Delivery System or Part","Other (Specify)","PKG003","D"]
[{"$nulls":9},"Pipe TobaccoPipe Tobacco","Pipe Tobacco","Pipe Tobacco","PKG004","I"]
[{"$nulls":9},"Pipe TobaccoPipe Tobacco Kit","Pipe Tobacco","Pipe Tobacco Kit","PKGNA","N"]
[{"$nulls":9},"Pipe TobaccoOther (Specify)","Pipe Tobacco","Other (Specify)","PKG004","I"]
[{"$nulls":9},"CigarettesCigarettes","Cigarettes","Cigarettes","PKG005","I"]
[{"$nulls":9},"Chewing TobaccoChewing Tobacco","Chewing Tobacco","Chewing Tobacco","PKG006","I"]
[{"$nulls":9},"DissolvablesDissolvables","Dissolvables","Dissolvables","PKGNA","N"]
[{"$nulls":9},"Accessory FiltersAccessory Filters","Accessory Filters","Accessory Filters","PKGNA","N"]
[{"$nulls":9},"Roll-Your-Own TobaccoRoll-Your-Own Tobacco","Roll-Your-Own Tobacco","Roll-Your-Own Tobacco","PKG007","I"]
[{"$nulls":9},"Roll-Your-Own PaperRoll-Your-Own Paper","Roll-Your-Own Paper","Roll-Your-Own Paper","PKG007","I"]
[{"$nulls":9},"Roll-Your-Own FiltersRoll-Your-Own Filters","Roll-Your-Own Filters","Roll-Your-Own Filters","PKG007","I"]
[{"$nulls":9},"Dry SnuffDry Snuff","Dry Snuff","Dry Snuff","PKG008","I"]
[{"$nulls":3},"Cigar",null,"PQU001",{"$nulls":3},"Moist SnuffMoist Snuff","Moist Snuff","Moist Snuff","PKG008","I"]
[{"$nulls":3},"Cigarettes",null,"PQU004",{"$nulls":3},"SnusSnus","Snus","Snus","PKG008","I"]
[{"$nulls":3},"Electronic Nicotine Delivery System or Part","E-Liquid","PQU005",{"$nulls":3},"TobaccoTobacco","Tobacco","Tobacco","PKGNA","N"]
[{"$nulls":3},"Electronic Nicotine Delivery System or Part","ENDS Cartridge","PQU005","Glass Bottles",null,null,"PaperPaper","Paper","Paper","PKGNA","N"]
[{"$nulls":3},"Electronic Nicotine Delivery System or Part","ENDS Cartridge","PQU005","Plastic Bottles",null,null,"FiltersFilters","Filters","Filters","PKGNA","N"]
[{"$nulls":3},"Electronic Nicotine Delivery System or Part","ENDS Cartridge","PQU005","Pods",null,null,"Pouch for Portioned TobaccoPouch for Portioned Tobacco","Pouch for Portioned Tobacco","Pouch for Portioned Tobacco","PKGNA","N"]
[{"$nulls":3},"Electronic Nicotine Delivery System or Part","Other (Specify)","PQU005","Glass Bottles",null,null,"AdditiveAdditive","Additive","Additive","PKGNA","N"]
[{"$nulls":3},"Electronic Nicotine Delivery System or Part","Other (Specify)","PQU005","Plastic Bottles",null,null,"Waterpipe TobaccoWaterpipe Tobacco","Waterpipe Tobacco","Waterpipe Tobacco","PKGNA","N"]
[{"$nulls":3},"Electronic Nicotine Delivery System or Part","Other (Specify)","PQU005","Pods",null,null,"Waterpipe TobaccoOther (Specify)","Waterpipe Tobacco","Other (Specify)","PKGNA","N"]
[{"$nulls":3},"Electronic Nicotine Delivery System or Part","ENDS Cartridge","PQU006","Kits",null,null,"Waterpipe Tobacco Component or PartWaterpipe Tobacco Base","Waterpipe Tobacco Component or Part","Waterpipe Tobacco Base","PKGNA","N"]
[{"$nulls":3},"Electronic Nicotine Delivery System or Part","ENDS Cartridge","PQU006","Battery",null,null,"Waterpipe Tobacco Component or PartWaterpipe Tobacco Bowl","Waterpipe Tobacco Component or Part","Waterpipe Tobacco Bowl","PKGNA","N"]
[{"$nulls":3},"Electronic Nicotine Delivery System or Part","Other (Specify)","PQU006","Kits",null,null,"Waterpipe Tobacco Component or PartWaterpipe Tobacco Cinder","Waterpipe Tobacco Component or Part","Waterpipe Tobacco Cinder","PKGNA","N"]
[{"$nulls":3},"Electronic Nicotine Delivery System or Part","Other (Specify)","PQU006","Battery",null,null,"Waterpipe Tobacco Component or PartWaterpipe Tobacco Diffuser","Waterpipe Tobacco Component or Part","Waterpipe Tobacco Diffuser","PKGNA","N"]
[{"$nulls":3},"Pipe Tobacco","Pipe Tobacco","PQU002",{"$nulls":3},"Waterpipe Tobacco Component or PartWaterpipe Tobacco Flavor Enhancer","Waterpipe Tobacco Component or Part","Waterpipe Tobacco Flavor Enhancer","PKGNA","N"]
[{"$nulls":3},"Pipe Tobacco","Other (Specify)","PQU002",{"$nulls":3},{"$f":"K68&L68","v":"Waterpipe Tobacco Component or PartWaterpipe Tobacco Foil/Screen"},"Waterpipe Tobacco Component or Part","Waterpipe Tobacco Foil/Screen","PKGNA","N"]
[{"$nulls":3},"Other (Specify)",null,"PQU007",{"$nulls":3},"Waterpipe Tobacco Component or PartWaterpipe Tobacco Gasket","Waterpipe Tobacco Component or Part","Waterpipe Tobacco Gasket","PKGNA","N"]
[{"$nulls":3},"Moist Snuff",null,"PQU003",{"$nulls":3},"Waterpipe Tobacco Component or PartWaterpipe Tobacco Grommet","Waterpipe Tobacco Component or Part","Waterpipe Tobacco Grommet","PKGNA","N"]
[{"$nulls":3},"Dry Snuff",null,"PQU003",{"$nulls":3},"Waterpipe Tobacco Component or PartWaterpipe Tobacco Hose","Waterpipe Tobacco Component or Part","Waterpipe Tobacco Hose","PKGNA","N"]
[{"$nulls":3},"Chewing Tobacco",null,"PQU003",{"$nulls":3},"Waterpipe Tobacco Component or PartWaterpipe Tobacco Hose Cooling Attachment","Waterpipe Tobacco Component or Part","Waterpipe Tobacco Hose Cooling Attachment","PKGNA","N"]
[{"$nulls":3},"Roll-Your-Own Tobacco",null,"FF",{"$nulls":3},"Waterpipe Tobacco Component or PartWaterpipe Tobacco Mouthpiece","Waterpipe Tobacco Component or Part","Waterpipe Tobacco Mouthpiece","PKGNA","N"]
[{"$nulls":3},"Roll-Your-Own Paper",null,"FF",{"$nulls":3},"Waterpipe Tobacco Component or PartWaterpipe Tobacco Valve","Waterpipe Tobacco Component or Part","Waterpipe Tobacco Valve","PKGNA","N"]
[{"$nulls":3},"Roll-Your-Own Filters",null,"FF",{"$nulls":3},"Waterpipe Tobacco Component or PartWaterpipe Tobacco Stem","Waterpipe Tobacco Component or Part","Waterpipe Tobacco Stem","PKGNA","N"]
[{"$nulls":9},"Waterpipe Tobacco Component or PartWaterpipe Tobacco Filtration Base Additives","Waterpipe Tobacco Component or Part","Waterpipe Tobacco Filtration Base Additives","PKGNA","N"]
[{"$nulls":9},"Waterpipe Tobacco Component or PartOther (Specify)","Waterpipe Tobacco Component or Part","Other (Specify)","PKGNA","N"]
[{"$nulls":9},"Other (Specify)Other (Specify)","Other (Specify)","Other (Specify)","PKG009","D"]

{"sheet":"New_Store_List","index":4,"n_rows":268,"n_cols":28,"rows_kept":268,"hidden":true}
["Product Category",null,"Product Subcategory","Intent of Use","Additional (Industry) Product Identification # Type","Package Type","Product Quantity (Units)","Product Quantity Mass (Units)","Characterizing Flavor","Nicotine Concentration (Units)","Nicotine Source","Tobacco Cut Style","Portion Count (Units)","Portion Mass (Units)","Length Description","Length (Units)","Width (Units)","Diameter (Description)","Diameter (Format)","Diameter (Units)","Portion Thickness (Units)","E-Liquid Volume (Units)","Wattage (Units)","Battery Capacity (Units)","Height (Units)","Source of Energy","Wrapper Material","Tip Type"]
["Cigarettes","PC001",null,"Consumer Use"]
["Cigars","PC002",null,"For Further Manufacturing"]
["Electronic Nicotine Delivery Systems (ENDS)(Vapes)","PC003"]
["Heated Tobacco Products (HTP)","PC004"]
["Oral Nicotine Products","PC005"]
["Other Products (Specify)","PC006"]
["Pipe Tobacco Products","PC007"]
["Roll-Your-Own (RYO) Tobacco Products","PC008"]
["Smokeless Tobacco Products","PC009"]
["Waterpipe Tobacco Products","PC010",{"$nulls":7},"NCU001",{"$nulls":3},"PMU001"]
[{"$nulls":4},"API001List",{"$nulls":4},"mg/ml",{"$nulls":3},"Milligrams (mg)","LD001","LU001",null,"DD001","DF001","DU001",null,"EVU001","WU001","BC001",null,"SE001","WM001","TT001"]
[{"$nulls":3},"OtherList","SKU",{"$nulls":3},"CF001"," %W/W","NS001","TCS001","PCU001","Grams (g)","King","Millimeters (mm)",null,"Regular","Circumference","Millimeters (mm)",null,"Milliliters (mL)","Watts (W)","Watts (W)",null,"Charcoal","Tobacco Leaf","Wood"]
["PC001",null,"NNAList","Other (Specify)","Item or Catalog #","PT001","PQ001","PQM001","Menthol","mg/unit","Tobacco (TDN)","Standard Cut","Bits","Kilograms (kg)","Long","Centimeters (cm)",null,"Slim","Diameter","Centimeters (cm)",null,"Liters (L)","Milliwatts (mW)","Milliamps (mA)",null,"Battery","Sheet Tobacco","Plastic"]
["Filtered Cigarettes",null,"N/A",null,"Other (Specify)","Box","Count","Milligrams (mg)","Tobacco","None","Non-Tobacco (NTN)","Pressed Cut","Bound","Ounces (oz)","XL","Meters (m)",null,"Super Slim","Radius","Meters (m)",null,"Fluid Ounces (fl oz)","Volts (V)","Milliamp hours (mAh)",null,"Electrical","Paper","Paper"]
["Non-Filtered Cigarettes",{"$nulls":4},"Clamshell","Other (Specify)","Grams (g)","Flavored",null,"Both","Mixture","Boxes","Pounds (lbs)","Queen","Inches (in)",null,"Wide","Ring Gauge","Inches (in)",null,"Kiloliters (kL)","None",null,null,"Other (Specify)","Other (Specify)","None"]
["Cigarettes - Other (Specify)",{"$nulls":4},"Hard Box","None","Kilograms (kg)","Unflavored",null,"None","None","Brick","Tons","None","None",null,"None","None","None",null,"None",{"$nulls":3},"None","None","Other (Specify)"]
[{"$nulls":5},"Hard Pack","PQ002","Ounces (oz)",{"$nulls":4},"Cartridges","None","Other (Specify)",{"$nulls":3},"DF002","DU002",{"$nulls":6},"WM002"]
["PC002",{"$nulls":4},"Soft Pack","Other (Specify)","Pounds (lbs)",{"$nulls":4},"Count",null,"None",null,null,"DD002","Circumference","Millimeters (mm)",{"$nulls":6},"Tobacco Leaf"]
["Cigar Component",{"$nulls":4},"Other (Specify)","None","Tons",{"$nulls":4},"E-Cigarette",null,"LD002",null,null,"Regular","Diameter","Centimeters (cm)",{"$nulls":6},"Sheet Tobacco"]
["Cigar Tobacco Filler",{"$nulls":4},"None","PQ003","None",{"$nulls":4},"Filters",null,"King",null,null,"Slim","Radius","Meters (m)",{"$nulls":6},"Paper"]
["Filtered, Sheet-Wrapped Cigars",{"$nulls":4},"PT002","Chews",{"$nulls":5},"Leaves",null,"Long",null,null,"Super Slim","None","Inches (in)",{"$nulls":6},"Other (Specify)"]
["Unfiltered, Leaf-Wrapped Cigars",{"$nulls":4},"Box","Count",{"$nulls":5},"Loose Leaf Pieces",null,"XL",null,null,"Wide","DF003","None",{"$nulls":6},"None"]
["Unfiltered, Sheet-Wrapped Cigars",{"$nulls":4},"Cellophane","Discs",{"$nulls":5},"Orb",null,"Queen",null,null,"None","Circumference"]
["Cigars - Other (Specify)",{"$nulls":4},"Clamshell","Pieces",{"$nulls":5},"Paper",null,"Other (Specify)",{"$nulls":3},"Diameter"]
[{"$nulls":5},"Foil","Pouches",{"$nulls":5},"Pellets",null,"None",{"$nulls":3},"Radius"]
["PC003",{"$nulls":4},"None","Stick",{"$nulls":5},"Pieces",{"$nulls":5},"None"]
["Closed E-Cigarette",{"$nulls":4},"Soft Pack","Strip",{"$nulls":5},"Pipe"]
["Closed E-Liquid",{"$nulls":4},"Other (Specify)","Tablet",{"$nulls":5},"Plug"]
["ENDS Component",{"$nulls":5},"Twist",{"$nulls":5},"Pouches"]
["Open E-Cigarette",{"$nulls":4},"PT003","Other (Specify)",{"$nulls":5},"Sheet"]
["Open E-Liquid",{"$nulls":4},"Bag/Pouch","None",{"$nulls":5},"Stick"]
["ENDS - Other (Specify)",{"$nulls":4},"Metal Can with Lid","PQ004",{"$nulls":5},"Strip"]
[{"$nulls":5},"Metal Can with Plastic Lid","Base",{"$nulls":5},"Tablets"]
["PC004",{"$nulls":4},"None","Battery",{"$nulls":5},"Tips"]
["Closed HTP",{"$nulls":4},"Plastic Can with Lid","Bits",{"$nulls":5},"Tubes"]
["Open HTP",{"$nulls":4},"Plastic Can with Metal Lid","Bottles",{"$nulls":5},"Twist"]
["HTP Consumable",{"$nulls":4},"Other (Specify)","Bowl",{"$nulls":5},"Other (Specify)"]
["HTP Component",{"$nulls":5},"Boxes",{"$nulls":5},"None"]
["HTP - Other (Specify)",{"$nulls":4},"PT004","Capsules"]
[{"$nulls":5},"Bag/Pouch","Cartridges",{"$nulls":5},"PCU002"]
["PC005",{"$nulls":4},"Blister Pack","Cigar",{"$nulls":5},"Bits"]
["Nicotine Pouch",{"$nulls":4},"Booklet","Cigarette",{"$nulls":5},"Boxes"]
["Oral Nicotine - Other (Specify)",{"$nulls":4},"Bottle","Coil",{"$nulls":5},"Cartridges"]
[{"$nulls":5},"Box","Count",{"$nulls":5},"Count"]
["PC006",{"$nulls":4},"Cardboard Sleeve","Device",{"$nulls":5},"E-Cigarette"]
["RYO Filter",{"$nulls":4},"Carton","E-Cigarette",{"$nulls":5},"Filters"]
["RYO Filtered Cigarette Tube",{"$nulls":4},"Cartridge","Filters",{"$nulls":5},"Leaves"]
["RYO Non-Filtered Cigarette Tube",{"$nulls":4},"Cellophane","Grams",{"$nulls":5},"Loose Leaf Pieces"]
["RYO Paper Tip",{"$nulls":4},"Clamshell","Hose",{"$nulls":5},"Orb"]
["RYO Tobacco Filler",{"$nulls":4},"Film Sleeve","HTP",{"$nulls":5},"Paper"]
["RYO Rolling Paper",{"$nulls":4},"Foil","Leaves",{"$nulls":5},"Pieces"]
["RYO - Other (Specify)",{"$nulls":4},"Hard Box","Loose Leaf Pieces",{"$nulls":5},"Pipe"]
[{"$nulls":5},"Hard Pack","Mouthpiece",{"$nulls":5},"Plug"]
["PC007",{"$nulls":4},"Matchbook","Ounces",{"$nulls":5},"Pouches"]
["Dissolvable",{"$nulls":4},"Metal Can with Lid","Paper",{"$nulls":5},"Sheet"]
["Loose Chewing Tobacco",{"$nulls":4},"Metal Can with Plastic Lid","Pieces",{"$nulls":5},"Stick"]
["Loose Dry Snuff",{"$nulls":4},"None","Pipe",{"$nulls":5},"Strip"]
["Loose Moist Snuff",{"$nulls":4},"Plastic Can with Lid","Plug",{"$nulls":5},"Tablet"]
["Loose Snus",{"$nulls":4},"Plastic Can with Metal Lid","Pouches",{"$nulls":5},"Tips"]
["Portioned Chewing Tobacco",{"$nulls":4},"Pod","Sheet",{"$nulls":5},"Tubes"]
["Portioned Moist Snuff",{"$nulls":4},"Puck","Spacer",{"$nulls":5},"Twist"]
["Portioned Snus",{"$nulls":4},"Soft Pack","Stem",{"$nulls":5},"Other (Specify)"]
["Smokeless - Other (Specify)",{"$nulls":4},"Tube","Stick",{"$nulls":5},"None"]
[{"$nulls":5},"Wrapper","Strip"]
["PC008",{"$nulls":4},"Other (Specify)","Tablet"]
["Waterpipe",{"$nulls":5},"Tips"]
["Waterpipe Component",{"$nulls":4},"PT005","Tubes"]
["Waterpipe Heat Source",{"$nulls":4},"Box","Twist"]
["Waterpipe Tobacco Filler",{"$nulls":4},"Clamshell","Waterpipe"]
["Waterpipe - Other (Specify)",{"$nulls":4},"None","Other (Specify)"]
[{"$nulls":5},"Other (Specify)","None"]
["PC009",{"$nulls":5},"PQ005"]
["Other Products - Other (Specify)",{"$nulls":4},"PT006","Bits"]
[{"$nulls":5},"Box","Count"]
[{"$nulls":5},"Cartridge","Loose Leaf Pieces"]
["PC011",{"$nulls":4},"Other (Specify)","Pieces"]
["Pipe",{"$nulls":4},"None","Plug"]
["Pipe Component",{"$nulls":4},"PT007","Pouches"]
["Pipe Tobacco Filler",{"$nulls":4},"Bottle","Stick"]
["Pipe - Other (Specify)",{"$nulls":4},"Box","Strip"]
[{"$nulls":5},"Other (Specify)","Tablet"]
[{"$nulls":5},"None","Twist"]
[{"$nulls":5},"PT008","Other (Specify)"]
[{"$nulls":5},"Bag/Pouch","None"]
[{"$nulls":5},"Blister Pack","PQ006"]
[{"$nulls":5},"Booklet","Count"]
[{"$nulls":5},"Bottle","E-Cigarette"]
[{"$nulls":5},"Box","Other (Specify)"]
[{"$nulls":5},"Cardboard Sleeve","None"]
[{"$nulls":5},"Carton","PQ007"]
[{"$nulls":5},"Cartridge","Cartridges"]
[{"$nulls":5},"Cellophane","Other (Specify)"]
[{"$nulls":5},"Clamshell","None"]
[{"$nulls":5},"Film Sleeve","PQ008"]
[{"$nulls":5},"Foil","Count"]
[{"$nulls":5},"Hard Box","E-Cigarette"]
[{"$nulls":5},"Hard Pack","Other (Specify)"]
[{"$nulls":5},"Matchbook","None"]
[{"$nulls":5},"Metal Can with Lid","PQ009List"]
[{"$nulls":5},"Metal Can with Plastic Lid","Bottles"]
[{"$nulls":5},"None","Boxes"]
[{"$nulls":5},"Plastic Can with Lid","Other (Specify)"]
[{"$nulls":5},"Plastic Can with Metal Lid","None"]
[{"$nulls":5},"Pod"]
[{"$nulls":5},"Puck","PQ010List"]
[{"$nulls":5},"Soft Pack","Bottles"]
[{"$nulls":5},"Tube","Boxes"]
[{"$nulls":5},"Wrapper","Cartridges"]
[{"$nulls":5},"Other (Specify)","Count"]
[{"$nulls":6},"E-Cigarette"]
[{"$nulls":5},"PT009","Other (Specify)"]
[{"$nulls":5},"Box","None"]
[{"$nulls":5},"None","PQ011"]
[{"$nulls":5},"Other (Specify)","Device"]
[{"$nulls":6},"HTP"]
[{"$nulls":5},"PT010","Other (Specify)"]
[{"$nulls":5},"Bag/Pouch","None"]
[{"$nulls":5},"Metal Can with Lid","PQ012"]
[{"$nulls":5},"Metal Can with Plastic Lid","Cartridges"]
[{"$nulls":5},"Plastic Can with Lid","Sticks"]
[{"$nulls":5},"Plastic Can with Metal Lid","Other (Specify)"]
[{"$nulls":5},"Other (Specify)","None"]
[{"$nulls":5},"None","PQ013"]
[{"$nulls":5},"PT011","Mouthpiece"]
[{"$nulls":5},"Bag/Pouch","Spacer"]
[{"$nulls":5},"Box","Other (Specify)"]
[{"$nulls":5},"Other (Specify)","None"]
[{"$nulls":5},"None","PQ014"]
[{"$nulls":5},"PT012","Base"]
[{"$nulls":5},"Booklet","Battery"]
[{"$nulls":5},"Box","Bits"]
[{"$nulls":5},"Other (Specify)","Bottles"]
[{"$nulls":5},"None","Bowl"]
[{"$nulls":5},"PT013","Boxes"]
[{"$nulls":5},"Bag/Pouch","Capsules"]
[{"$nulls":5},"Booklet","Cartridges"]
[{"$nulls":5},"Box","Cigar"]
[{"$nulls":5},"Metal Can with Lid","Cigarette"]
[{"$nulls":5},"Metal Can with Plastic Lid","Coil"]
[{"$nulls":5},"Plastic Can with Lid","Count"]
[{"$nulls":5},"Plastic Can with Metal Lid","Device"]
[{"$nulls":5},"Other (Specify)","E-Cigarette"]
[{"$nulls":5},"None","Filters"]
[{"$nulls":5},"PT014","Grams"]
[{"$nulls":5},"Bag/Pouch","Hose"]
[{"$nulls":5},"Blister Pack","HTP"]
[{"$nulls":5},"Carton","Leaves"]
[{"$nulls":5},"Matchbook","Loose Leaf Pieces"]
[{"$nulls":5},"Metal Can with Lid","Mouthpiece"]
[{"$nulls":5},"Metal Can with Plastic Lid","Ounces"]
[{"$nulls":5},"Plastic Can with Lid","Paper"]
[{"$nulls":5},"Plastic Can with Metal Lid","Pieces"]
[{"$nulls":5},"Puck","Pipe"]
[{"$nulls":5},"Other (Specify)","Plug"]
[{"$nulls":5},"None","Pouches"]
[{"$nulls":5},"PT015","Sheet"]
[{"$nulls":5},"Bag/Pouch","Spacer"]
[{"$nulls":5},"Box","Stem"]
[{"$nulls":5},"Film Sleeve","Stick"]
[{"$nulls":5},"None","Strip"]
[{"$nulls":5},"Other (Specify)","Tablet"]
[{"$nulls":6},"Tips"]
[{"$nulls":5},"PT016","Tubes"]
[{"$nulls":5},"Other (Specify)","Twist"]
[{"$nulls":5},"None","Waterpipe"]
[{"$nulls":6},"Other (Specify)"]
[{"$nulls":6},"None"]
[{"$nulls":6},"Heated Tobacco Products (HTP)"]
[]
[{"$nulls":6},"PQ015"]
[{"$nulls":6},"Base"]
[{"$nulls":6},"Battery"]
[{"$nulls":6},"Bits"]
[{"$nulls":6},"Bottles"]
[{"$nulls":6},"Bowl"]
[{"$nulls":6},"Boxes"]
[{"$nulls":6},"Capsules"]
[{"$nulls":6},"Cartridges"]
[{"$nulls":6},"Cigar"]
[{"$nulls":6},"Cigarette"]
[{"$nulls":6},"Coil"]
[{"$nulls":6},"Count"]
[{"$nulls":6},"Device"]
[{"$nulls":6},"E-Cigarette"]
[{"$nulls":6},"Filters"]
[{"$nulls":6},"Grams"]
[{"$nulls":6},"Hose"]
[{"$nulls":6},"HTP"]
[{"$nulls":6},"Leaves"]
[{"$nulls":6},"Loose Leaf Pieces"]
[{"$nulls":6},"Mouthpiece"]
[{"$nulls":6},"Ounces"]
[{"$nulls":6},"Paper"]
[{"$nulls":6},"Pieces"]
[{"$nulls":6},"Pipe"]
[{"$nulls":6},"Plug"]
[{"$nulls":6},"Pouches"]
[{"$nulls":6},"Sheet"]
[{"$nulls":6},"Spacer"]
[{"$nulls":6},"Stem"]
[{"$nulls":6},"Stick"]
[{"$nulls":6},"Strip"]
[{"$nulls":6},"Tablet"]
[{"$nulls":6},"Tips"]
[{"$nulls":6},"Tubes"]
[{"$nulls":6},"Twist"]
[{"$nulls":6},"Waterpipe"]
[{"$nulls":6},"Other (Specify)"]
[{"$nulls":6},"None"]
[{"$nulls":6},"PQ016"]
[{"$nulls":6},"Cartridges"]
[{"$nulls":6},"Sticks"]
[{"$nulls":6},"Other (Specify)"]
[{"$nulls":6},"None"]
[{"$nulls":6},"PQ017"]
[{"$nulls":6},"Device"]
[{"$nulls":6},"HTP"]
[{"$nulls":6},"Other (Specify)"]
[{"$nulls":6},"None"]
[{"$nulls":6},"PQ018"]
[{"$nulls":6},"Mouthpiece"]
[{"$nulls":6},"Spacer"]
[{"$nulls":6},"Other (Specify)"]
[{"$nulls":6},"None"]
[{"$nulls":6},"Pipe Tobacco Products"]
[]
[{"$nulls":6},"PQ019"]
[{"$nulls":6},"Pipe"]
[{"$nulls":6},"Other (Specify)"]
[{"$nulls":6},"None"]
[{"$nulls":6},"Roll Your Own Tobacco Products"]
[]
[{"$nulls":6},"PQ020"]
[{"$nulls":6},"Count"]
[{"$nulls":6},"Tubes"]
[{"$nulls":6},"Other (Specify)"]
[{"$nulls":6},"None"]
[{"$nulls":6},"PQ021"]
[{"$nulls":6},"Count"]
[{"$nulls":6},"Pieces"]
[{"$nulls":6},"Tips"]
[{"$nulls":6},"Other (Specify)"]
[{"$nulls":6},"None"]
[{"$nulls":6},"PQ022"]
[{"$nulls":6},"Count"]
[{"$nulls":6},"Paper"]
[{"$nulls":6},"Pieces"]
[{"$nulls":6},"Sheet"]
[{"$nulls":6},"Other (Specify)"]
[{"$nulls":6},"None"]
[{"$nulls":6},"PQ023"]
[{"$nulls":6},"Count"]
[{"$nulls":6},"Filters"]
[{"$nulls":6},"Pieces"]
[{"$nulls":6},"Other (Specify)"]
[{"$nulls":6},"None"]
[{"$nulls":6},"PQ024"]
[{"$nulls":6},"Count"]
[{"$nulls":6},"Filters"]
[{"$nulls":6},"Leaves"]
[{"$nulls":6},"Paper"]
[{"$nulls":6},"Pieces"]
[{"$nulls":6},"Sheet"]
[{"$nulls":6},"Tips"]
[{"$nulls":6},"Tubes"]
[{"$nulls":6},"Other (Specify)"]
[{"$nulls":6},"None"]